bitfinex/quotes_SOLUSD_20260217
["timestamp","ask_amount","ask_price","bid_price","bid_amount"]
[1771343963955,7.32585178,83.89,83.867,3.4580824]
[1771343964153,7.32585178,83.88,83.859,3.4580824]
[1771343964351,7.32585178,83.88,83.86,16.64]
[1771343965047,7.32585178,83.87,83.851,16.64]
[1771343965350,7.32585178,83.86,83.847,16.64]
[1771343965658,7.32585178,83.86,83.832,3.4580824]
[1771343965844,7.32585178,83.86,83.834,3.4580824]
[1771343966153,7.32585178,83.86,83.835,16.64]
[1771343966335,7.32585178,83.86,83.835,20.0980824]
[1771343966543,7.32585178,83.86,83.823,41.75464967]
[1771343966544,7.32585178,83.87,83.841,3.4580824]
[1771343967050,7.32585178,83.89,83.851,3.4580824]
[1771343967246,7.32585178,83.88,83.851,3.4580824]
[1771343968263,7.32585178,83.87,83.852,16.66]
[1771343968448,0.33261638,83.881,83.845,11.92676963]
[1771343968765,0.33261638,83.881,83.842,3.4580824]
[1771343968766,7.32585178,83.86,83.842,20.1180824]
[1771343968936,7.32585178,83.86,83.842,3.4580824]
[1771343969563,7.32585178,83.86,83.843,11.92705413]
[1771343969868,7.32585178,83.86,83.844,3.4580824]
[1771343970230,0.33211629,83.903,83.844,3.4580824]
[1771343970450,7.32585178,83.89,83.851,3.4580824]
[1771343970835,4.61729252,83.906,83.851,3.4580824]
[1771343970836,7.32585178,83.88,83.851,3.4580824]
[1771343971034,0.33184609,83.905,83.851,3.4580824]
[1771343971239,7.32585178,83.89,83.853,3.4580824]
[1771343971634,7.32585178,83.89,83.855,3.4580824]
[1771343971834,7.32585178,83.88,83.856,16.68]
[1771343972458,7.32585178,83.88,83.856,20.1380824]
[1771343972658,7.32585178,83.88,83.845,29.81689559]
[1771343972659,7.32585178,83.87,83.846,11.92662738]
[1771343972967,7.32585178,83.87,83.851,16.68]
[1771343973136,0.33133415,83.89,83.852,3.4580824]
[1771343973332,7.32585178,83.87,83.852,3.4580824]
[1771343973843,7.32585178,83.87,83.853,3.4580824]
[1771343974752,7.32585178,83.9,83.853,3.4580824]
[1771343974753,7.32585178,83.88,83.853,3.4580824]
[1771343975252,7.32585178,83.89,83.855,3.4580824]
[1771343975940,7.32585178,83.89,83.857,3.4580824]
[1771343976545,7.32585178,83.89,83.834,47.71295802]
[1771343976546,7.32585178,83.87,83.849,3.4580824]
[1771343976738,7.32585178,83.86,83.85,11.92605843]
[1771343977138,7.32585178,83.87,83.85,11.92605843]
[1771343977338,7.32585178,83.87,83.851,3.4580824]
[1771343977940,7.32585178,83.87,83.853,3.4580824]
[1771343978242,7.32585178,83.87,83.854,16.7]
[1771343981853,7.32585178,83.9,83.832,3.4580824]
[1771343981854,7.32585178,83.86,83.832,3.4580824]
[1771343982160,7.32585178,83.87,83.834,3.4580824]
[1771343982361,7.32585178,83.87,83.843,3.4580824]
[1771343982547,19.24775726,83.88,83.843,3.4580824]
[1771343982863,0.32904834,83.893,83.845,3.4580824]
[1771343983072,7.32585178,83.88,83.847,3.4580824]
[1771343984174,7.32585178,83.88,83.846,16.72]
[1771343984175,7.32585178,83.87,83.849,3.4580824]
[1771343984348,7.32585178,83.88,83.851,3.4580824]
[1771343985446,7.32585178,83.88,83.853,3.4580824]
[1771343986663,7.32585178,83.87,83.854,11.92548954]
[1771343986863,12.24950853,83.882,83.854,11.92548954]
[1771343987557,7.32585178,83.87,83.854,11.92548954]
[1771343988059,7.32585178,83.88,83.855,3.4580824]
[1771343988269,7.32585178,83.88,83.857,3.4580824]
[1771343988650,7.32585178,83.88,83.859,3.4580824]
[1771343989052,7.32585178,83.89,83.859,3.4580824]
[1771343989367,7.32585178,83.89,83.861,3.4580824]
[1771343989952,2.46048804,83.89,83.861,3.4580824]
[1771343990572,2.46048804,83.89,83.863,3.4580824]
[1771343990754,2.46048804,83.89,83.862,16.76]
[1771343990755,2.46048804,83.89,83.865,3.4580824]
[1771343992173,2.46048804,83.87,83.861,16.78]
[1771343992366,2.46048804,83.87,83.861,12.11388645]
[1771343992555,2.46048804,83.87,83.841,3.4580824]
[1771343992747,2.46048804,83.86,83.842,32.32881458]
[1771343992946,2.46048804,83.87,83.844,3.62161819]
[1771343994058,7.32702109,83.87,83.844,3.62161819]
[1771343994262,7.32702109,83.87,83.846,3.62161819]
[1771343994462,7.32702109,83.88,83.846,3.62161819]
[1771343994662,7.32702109,83.88,83.848,3.62161819]
[1771343994868,7.32702109,83.89,83.851,3.62161819]
[1771343995378,7.32702109,83.88,83.851,3.62161819]
[1771343996578,7.32702109,83.89,83.853,3.62161819]
[1771343997180,7.32702109,83.89,83.861,3.62161819]
[1771343997380,7.32702109,83.9,83.861,3.62161819]
[1771343997980,7.32702109,83.9,83.863,3.62161819]
[1771343998170,7.32702109,83.9,83.871,3.62161819]
[1771343998368,7.32702109,83.91,83.871,3.62161819]
[1771343998564,7.32702109,83.91,83.873,3.62161819]
[1771343998760,7.32702109,83.91,83.875,3.62161819]
[1771343999357,7.32702109,83.92,83.881,3.62161819]
[1771343999774,7.32702109,83.91,83.881,3.62161819]
[1771343999976,7.32702109,83.91,83.883,3.62161819]
[1771344000475,7.32702109,83.92,83.883,3.62161819]
[1771344000679,7.32702109,83.92,83.88,7.32702109]
[1771344000860,7.32702109,83.92,83.874,41.72926055]
[1771344000861,4.61729252,83.936,83.89,7.32702109]
[1771344001060,7.32702109,83.93,83.89,7.32702109]
[1771344001260,7.32702109,83.92,83.88,7.32702109]
[1771344001557,7.32702109,83.92,83.862,4.61729252]
[1771344001558,4.61729252,83.936,83.901,3.62161819]
[1771344001764,7.32702109,83.93,83.901,3.62161819]
[1771344001958,7.31708808,83.93,83.901,3.62161819]
[1771344002482,4.61729252,83.964,83.902,3.62161819]
[1771344002698,22.04171193,83.967,83.902,3.62161819]
[1771344002699,7.31708808,83.93,83.902,3.62161819]
[1771344003184,7.31708808,83.95,83.881,3.62161819]
[1771344003388,4.61729252,83.964,83.901,3.62161819]
[1771344003389,7.31708808,83.94,83.901,3.62161819]
[1771344003569,7.31708808,83.92,83.891,3.62161819]
[1771344003768,4.61729252,83.959,83.893,3.62161819]
[1771344003967,7.31708808,83.91,83.882,3.62161819]
[1771344004372,7.31708808,83.93,83.891,3.62161819]
[1771344004685,7.31708808,83.94,83.911,3.62161819]
[1771344004860,3.33481391,83.969,83.931,3.39713256]
[1771344005062,2.02335432,83.949,83.93,16.8]
[1771344005269,3.33481391,83.939,83.913,28.71710462]
[1771344005471,7.31708808,83.93,83.913,11.91710462]
[1771344005675,3.33481391,83.919,83.897,16.8]
[1771344005963,7.31708808,83.91,83.897,16.8]
[1771344006167,3.33481391,83.909,83.875,11.92239914]
[1771344006369,3.33481391,83.889,83.83,3.39713256]
[1771344006662,7.31708808,83.91,83.881,3.39713256]
[1771344006874,7.31708808,83.9,83.871,3.39713256]
[1771344007174,7.31708808,83.89,83.872,41.73025561]
[1771344007361,7.31708808,83.89,83.873,16.8]
[1771344007880,7.31708808,83.89,83.872,11.92293017]
[1771344008261,7.31708808,83.89,83.851,3.39713256]
[1771344008466,7.31708808,83.88,83.853,3.62303464]
[1771344008663,7.31708808,83.9,83.861,3.62303464]
[1771344008980,7.31708808,83.88,83.862,16.8]
[1771344009174,7.31708808,83.88,83.861,3.62303464]
[1771344009580,7.31708808,83.89,83.861,3.62303464]
[1771344009979,7.31708808,83.89,83.863,11.92420972]
[1771344010277,4.61729252,83.922,83.864,20.42303464]
[1771344010483,7.31708808,83.88,83.864,3.62303464]
[1771344010983,7.31708808,83.88,83.863,11.92420972]
[1771344011185,41.70390228,83.925,83.848,3.62303464]
[1771344011186,7.31708808,83.87,83.848,3.62303464]
[1771344011511,0.02248151,83.879,83.843,3.62303464]
[1771344011788,7.31708808,83.88,83.845,3.62303464]
[1771344012491,7.31708808,83.89,83.851,3.62303464]
[1771344012790,7.31708808,83.89,83.853,3.62303464]
[1771344013185,7.31708808,83.9,83.863,3.62303464]
[1771344013379,7.31708808,83.89,83.863,3.62303464]
[1771344014484,11.95703724,83.899,83.844,3.62303464]
[1771344014485,7.31708808,83.87,83.844,3.62303464]
[1771344014672,7.31708808,83.86,83.829,16.84]
[1771344014869,7.31708808,83.85,83.832,29.82154785]
[1771344015091,7.31708808,83.85,83.828,15.55222297]
[1771344015291,7.31708808,83.85,83.832,28.76853298]
[1771344015494,4.61729252,83.887,83.832,16.84]
[1771344015495,7.31708808,83.84,83.832,16.84]
[1771344015698,7.31708808,83.85,83.831,11.92874644]
[1771344015896,7.31708808,83.84,83.829,16.84]
[1771344016096,7.31708808,83.84,83.823,16.84]
[1771344016300,7.31708808,83.84,83.819,11.93042951]
[1771344016884,7.31708808,83.83,83.812,11.93143882]
[1771344017186,7.31708808,83.83,83.806,11.93231988]
[1771344017387,7.31708808,83.83,83.807,20.49157623]
[1771344017690,7.31708808,83.82,83.807,3.65157623]
[1771344017890,7.31708808,83.82,83.806,16.86]
[1771344018289,7.31708808,83.82,83.805,19.79552452]
[1771344018504,7.31708808,83.83,83.806,11.93231988]
[1771344019003,13.16,83.863,83.806,11.93231988]
[1771344019004,29.26835232,83.95,83.807,3.65157623]
[1771344019205,29.26835232,83.95,83.831,3.65157623]
[1771344019206,7.31708808,83.87,83.831,3.65157623]
[1771344019412,7.31708808,83.87,83.833,3.65157623]
[1771344019590,7.31708808,83.87,83.835,3.65157623]
[1771344019794,7.31708808,83.86,83.836,16.86]
[1771344020105,7.31708808,83.86,83.835,3.65157623]
[1771344020431,101.31229214,83.899,83.832,11.92861914]
[1771344020432,7.31708808,83.85,83.832,11.92861914]
[1771344020711,101.31229214,83.899,83.835,16.86]
[1771344020712,7.31708808,83.86,83.835,16.86]
[1771344021604,7.31708808,83.86,83.836,11.92805]
[1771344021820,7.31708808,83.87,83.837,16.88]
[1771344022189,7.31708808,83.86,83.836,11.92805]
[1771344022392,7.31708808,83.86,83.837,16.88]
[1771344022603,7.31708808,83.86,83.836,11.92805]
[1771344022820,7.31708808,83.87,83.837,3.34741954]
[1771344023112,3.38637749,83.869,83.838,16.88]
[1771344023321,3.38637749,83.859,83.82,7.31708808]
[1771344023609,7.31708808,83.87,83.831,3.34741954]
[1771344023797,10.70346557,83.86,83.832,16.88]
[1771344023998,3.38637749,83.871,83.833,3.34741954]
[1771344024203,3.38637749,83.869,83.833,3.34741954]
[1771344024407,7.31708808,83.86,83.833,3.34741954]
[1771344024815,7.31708808,83.86,83.834,16.88]
[1771344025321,7.31708808,83.85,83.824,3.34741954]
[1771344025498,3.38637749,83.859,83.831,16.88]
[1771344025703,3.38637749,83.849,83.815,3.34741954]
[1771344025910,10.70346557,83.84,83.816,16.88]
[1771344026109,3.38637749,83.849,83.817,3.34741954]
[1771344026413,7.31708808,83.87,83.831,3.34741954]
[1771344026799,7.31708808,83.87,83.833,3.34741954]
[1771344027194,7.31708808,83.88,83.841,3.34741954]
[1771344027798,7.31708808,83.89,83.851,3.34741954]
[1771344028004,29.79587298,83.905,83.861,3.34741954]
[1771344028005,10.70346557,83.9,83.861,3.34741954]
[1771344028316,3.38637749,83.899,83.861,3.34741954]
[1771344028610,7.31708808,83.89,83.861,3.34741954]
[1771344028913,10.70346557,83.88,83.854,16.88]
[1771344029212,3.38637749,83.879,83.842,41.74518737]
[1771344029418,3.38637749,83.879,83.843,20.22741954]
[1771344029914,7.31708808,83.86,83.841,16.88]
[1771344030112,7.31708808,83.86,83.831,11.92876143]
[1771344030113,3.38637749,83.859,83.831,11.92876143]
[1771344030312,7.31708808,83.86,83.831,11.92876143]
[1771344030516,11.92193516,83.879,83.841,3.34741954]
[1771344030697,3.38637749,83.878,83.842,16.88]
[1771344030897,3.38637749,83.878,83.842,20.22741954]
[1771344031504,7.31708808,83.87,83.842,20.22741954]
[1771344031814,7.31708808,83.87,83.843,11.92705413]
[1771344032018,3.38637749,83.869,83.843,11.92705413]
[1771344032206,7.31708808,83.87,83.843,11.92705413]
[1771344032406,7.31708808,83.87,83.843,28.80705413]
[1771344032920,1.72676066,83.849,83.82,11.93032689]
[1771344033217,7.31708808,83.86,83.821,3.34741954]
[1771344033618,42.96476782,83.88,83.831,3.34741954]
[1771344033619,11.92268467,83.874,83.831,3.34741954]
[1771344034316,11.92268467,83.874,83.83,7.31708808]
[1771344034317,7.31708808,83.87,83.833,3.34741954]
[1771344034518,7.31708808,83.87,83.835,3.34741954]
[1771344035813,1.7241848,83.869,83.835,3.34741954]
[1771344036125,1.7241848,83.869,83.836,16.9]
[1771344036543,1.7241848,83.886,83.838,3.34741954]
[1771344036723,7.31708808,83.88,83.838,3.34741954]
[1771344036923,7.31708808,83.87,83.84,3.34741954]
[1771344037128,7.31708808,83.87,83.842,3.34741954]
[1771344037706,7.31708808,83.88,83.842,3.34741954]
[1771344037927,7.31708808,83.88,83.844,3.34741954]
[1771344038125,11.9213455,83.884,83.844,3.34741954]
[1771344038126,7.31708808,83.87,83.844,3.34741954]
[1771344038430,7.31708808,83.86,83.832,16.92]
[1771344038738,7.31708808,83.86,83.831,16.92]
[1771344039031,13.63794099,83.859,83.831,16.92]
[1771344039226,1.7131625,83.858,83.831,16.92]
[1771344039433,1.7131625,83.858,83.821,3.34741954]
[1771344039614,1.7131625,83.858,83.826,16.92]
[1771344040307,1.70391595,83.849,83.812,3.34741954]
[1771344040627,41.73672473,83.859,83.81,16.92]
[1771344040628,7.31708808,83.84,83.81,16.92]
[1771344041003,7.31708808,83.85,83.811,3.34741954]
[1771344041430,1.69477561,83.856,83.811,3.34741954]
[1771344041804,11.92534732,83.855,83.811,3.34741954]
[1771344042615,11.92534732,83.855,83.81,24.23708808]
[1771344042616,11.92477849,83.859,83.821,3.34741954]
[1771344042818,7.31708808,83.85,83.823,3.34741954]
[1771344043022,7.31708808,83.85,83.824,16.94]
[1771344043612,7.31708808,83.86,83.825,3.34741954]
[1771344044040,7.31708808,83.86,83.812,41.76012981]
[1771344044041,7.31708808,83.86,83.827,3.34741954]
[1771344044729,7.31708808,83.86,83.826,16.96]
[1771344044730,11.92477849,83.859,83.829,3.48079796]
[1771344044934,11.92402109,83.865,83.829,3.48079796]
[1771344045115,47.66037237,83.928,83.841,3.48079796]
[1771344045116,7.31708808,83.88,83.841,3.48079796]
[1771344045310,1.65062477,83.889,83.841,3.48079796]
[1771344045628,1.65062477,83.889,83.851,3.48079796]
[1771344045832,1.65062477,83.889,83.853,3.48079796]
[1771344046324,4.61729252,83.907,83.854,11.92548954]
[1771344046325,7.31708808,83.88,83.854,11.92548954]
[1771344046528,7.31708808,83.88,83.852,16.96]
[1771344046730,8.95075432,83.88,83.852,16.96]
[1771344047032,8.95075432,83.88,83.849,11.92617246]
[1771344047033,8.95075432,83.88,83.849,11.92611669]
[1771344047631,1.63366624,83.869,83.834,3.48079796]
[1771344047817,7.31708808,83.87,83.834,3.48079796]
[1771344048126,7.31708808,83.87,83.831,16.96]
[1771344048127,11.92193516,83.879,83.836,3.48079796]
[1771344048332,7.31708808,83.88,83.841,3.48079796]
[1771344048517,7.31708808,83.88,83.843,3.48079796]
[1771344048711,36.04108079,83.897,83.842,16.96]
[1771344048712,7.31708808,83.89,83.851,3.48079796]
[1771344049110,11.9195194,83.896,83.851,3.48079796]
[1771344049319,7.31708808,83.89,83.851,3.48079796]
[1771344049541,7.31708808,83.9,83.861,3.48079796]
[1771344049713,1.61709505,83.917,83.863,3.48079796]
[1771344049714,11.91808699,83.907,83.863,3.48079796]
[1771344050318,11.91808699,83.907,83.865,3.48079796]
[1771344050520,11.91808699,83.907,83.867,3.48079796]
[1771344050831,7.31708808,83.9,83.867,3.48079796]
[1771344051615,7.31708808,83.91,83.871,3.48079796]
[1771344052034,7.31708808,83.9,83.871,3.48079796]
[1771344052234,7.31708808,83.9,83.873,3.50235269]
[1771344052419,8.90216756,83.9,83.868,11.92349883]
[1771344052930,7.31708808,83.89,83.868,11.92349883]
[1771344053433,7.31708808,83.9,83.87,11.92321449]
[1771344053636,7.31708808,83.9,83.871,3.50235269]
[1771344054132,31.37166793,83.909,83.871,3.50235269]
[1771344054342,7.31708808,83.9,83.871,3.50235269]
[1771344054520,1.56961801,83.907,83.871,3.50235269]
[1771344054716,7.31708808,83.9,83.871,3.50235269]
[1771344055634,7.31708808,83.9,83.872,11.92293017]
[1771344055831,7.31708808,83.9,83.873,3.50235269]
[1771344056141,1.55450967,83.909,83.873,3.50235269]
[1771344056341,7.31708808,83.9,83.873,3.50235269]
[1771344056640,7.31708808,83.91,83.873,3.50235269]
[1771344056819,7.31708808,83.91,83.872,41.73025561]
[1771344056820,7.31708808,83.91,83.875,3.50235269]
[1771344057019,59.56199736,83.947,83.872,41.73025561]
[1771344057020,7.31708808,83.9,83.877,3.50235269]
[1771344057215,7.31708808,83.91,83.877,3.50235269]
[1771344057420,1.54708541,83.915,83.872,41.73025561]
[1771344057421,7.31708808,83.93,83.881,3.50235269]
[1771344057637,5.36086188,83.979,83.862,47.6971997]
[1771344057638,11.90915695,83.969,83.902,3.50235269]
[1771344057838,1e-08,83.977,83.941,3.50235269]
[1771344058043,11.90814824,83.977,83.943,3.50235269]
[1771344058221,7.31708808,83.97,83.944,15.72]
[1771344058428,1.53974642,83.966,83.931,3.50235269]
[1771344058640,7.31708808,83.96,83.931,20.48235269]
[1771344059143,7.31708808,83.96,83.933,3.50235269]
[1771344059344,11.90814824,83.977,83.933,3.50235269]
[1771344059345,1e-08,83.977,83.933,3.50235269]
[1771344059524,1e-08,83.977,83.943,3.50235269]
[1771344060340,33.37190916,84.116,83.942,41.69545637]
[1771344060341,7.31708808,84.02,83.971,3.50235269]
[1771344060545,1.62531994,84.018,83.96,7.31708808]
[1771344060740,7.31708808,83.99,83.961,16.96]
[1771344060943,7.31708808,83.99,83.962,16.96]
[1771344061148,7.31708808,83.99,83.942,41.69545637]
[1771344061329,7.31708808,83.98,83.942,11.91298753]
[1771344061645,1.61823094,83.986,83.944,11.9127037]
[1771344061646,7.31708808,83.97,83.944,11.9127037]
[1771344061848,11.90688813,83.985,83.94,16.96]
[1771344061849,7.31708808,83.96,83.94,16.96]
[1771344062144,11.90688813,83.985,83.933,41.69992731]
[1771344062145,7.31708808,83.98,83.933,41.69992731]
[1771344062346,7.31708808,83.98,83.938,16.96]
[1771344062646,13.16,83.994,83.941,3.50235269]
[1771344062647,7.31708808,83.99,83.941,3.50235269]
[1771344063152,7.31708808,83.98,83.941,3.50235269]
[1771344063440,7.31708808,83.98,83.933,41.69992731]
[1771344063441,7.31708808,83.98,83.943,3.50235269]
[1771344063649,11.90915695,83.969,83.943,3.50235269]
[1771344063946,11.90915695,83.969,83.944,16.96]
[1771344064445,11.90915695,83.969,83.936,16.96]
[1771344064650,7.30999665,83.96,83.935,3.50235269]
[1771344065751,11.90915695,83.969,83.936,11.91383911]
[1771344065949,1.58354576,83.989,83.948,3.50235269]
[1771344066146,4.61729252,83.997,83.934,17.0]
[1771344066147,7.30999665,83.96,83.934,17.0]
[1771344066350,4.61729252,83.991,83.921,3.50235269]
[1771344066351,7.30999665,83.95,83.921,3.50235269]
[1771344066556,7.30999665,83.93,83.897,3.50235269]
[1771344066756,7.30999665,83.93,83.88,7.30999665]
[1771344066757,7.30999665,83.92,83.888,20.50235269]
[1771344066952,7.30999665,83.92,83.889,3.50235269]
[1771344067344,7.30999665,83.95,83.911,3.50235269]
[1771344067544,7.30999665,83.95,83.913,3.50235269]
[1771344067739,7.30999665,83.95,83.915,3.50235269]
[1771344068152,7.30999665,83.95,83.883,47.68541442]
[1771344068153,7.30999665,83.93,83.901,11.91880907]
[1771344068462,7.30999665,83.93,83.903,3.50235269]
[1771344069646,7.30999665,83.93,83.885,29.80261956]
[1771344069647,7.30999665,83.91,83.88,3.50235269]
[1771344069861,4.61729252,83.947,83.88,3.50235269]
[1771344069862,7.30999665,83.92,83.884,3.50235269]
[1771344070672,7.30999665,83.91,83.884,3.50235269]
[1771344070956,7.30999665,83.92,83.884,3.50235269]
[1771344071154,7.30999665,83.92,83.886,3.50235269]
[1771344071351,7.30999665,83.91,83.886,3.50235269]
[1771344071750,7.30999665,83.92,83.887,11.92079821]
[1771344071957,7.30999665,83.92,83.888,3.50235269]
[1771344072154,7.30999665,83.91,83.889,17.02]
[1771344072357,7.30999665,83.9,83.874,3.50235269]
[1771344072557,7.30999665,83.9,83.876,11.92222445]
[1771344072747,7.30999665,83.9,83.876,15.42457714]
[1771344073062,7.30999665,83.91,83.877,3.50235269]
[1771344073261,7.30999665,83.92,83.881,3.50235269]
[1771344073849,7.30999665,83.91,83.882,11.92150878]
[1771344074044,7.30999665,83.9,83.871,3.50235269]
[1771344074243,7.30999665,83.91,83.873,3.46825677]
[1771344075558,11.91525868,83.926,83.872,17.02]
[1771344075559,7.30999665,83.92,83.881,3.46825677]
[1771344075761,7.30999665,83.93,83.891,3.46825677]
[1771344075964,7.30999665,83.91,83.875,3.46825677]
[1771344076138,7.30999665,83.91,83.874,41.72926055]
[1771344076139,7.30999665,83.91,83.877,3.46825677]
[1771344076340,7.30999665,83.93,83.891,3.46825677]
[1771344076565,7.30999665,83.93,83.893,3.46825677]
[1771344076754,11.91369717,83.937,83.893,3.46825677]
[1771344076955,7.30999665,83.93,83.893,3.46825677]
[1771344077374,7.30999665,83.94,83.901,3.46825677]
[1771344077549,7.30999665,83.94,83.903,3.46825677]
[1771344077752,19.22340776,83.94,83.903,3.46825677]
[1771344077951,7.30999665,83.93,83.903,3.46825677]
[1771344078161,19.22340776,83.94,83.903,3.46825677]
[1771344078959,19.22340776,83.94,83.905,3.46825677]
[1771344079158,7.30999665,83.94,83.905,3.46825677]
[1771344079866,7.30999665,83.93,83.907,3.46825677]
[1771344080170,7.30999665,83.95,83.911,3.46825677]
[1771344080344,7.30999665,83.95,83.913,3.46825677]
[1771344080867,29.77111624,83.975,83.913,3.46825677]
[1771344080868,7.30999665,83.99,83.941,3.46825677]
[1771344081053,1.47992878,84.005,83.913,1.19171046]
[1771344081054,19.21479865,84.0,83.961,3.46825677]
[1771344081241,7.30999665,83.99,83.962,17.02]
[1771344081439,7.30999665,83.99,83.963,3.46825677]
[1771344082263,7.30999665,84.0,83.963,3.46825677]
[1771344082767,7.30999665,84.0,83.965,3.46825677]
[1771344083269,7.30999665,83.99,83.961,11.91018866]
[1771344083457,7.30999665,83.98,83.961,15.37844543]
[1771344084061,11.90490362,83.999,83.949,3.46825677]
[1771344084062,7.30999665,83.97,83.949,3.46825677]
[1771344084372,7.30999665,83.97,83.945,11.91251792]
[1771344084554,1.46254386,83.979,83.941,3.46825677]
[1771344084555,7.30999665,83.96,83.941,3.46825677]
[1771344084749,7.30999665,83.96,83.942,11.91298753]
[1771344085271,4.61729252,83.997,83.931,3.46825677]
[1771344085272,1.45688149,83.977,83.931,3.46825677]
[1771344085565,7.30999665,83.96,83.931,3.46825677]
[1771344085951,7.30999665,83.96,83.933,3.46825677]
[1771344086153,7.30999665,83.97,83.933,3.46825677]
[1771344086368,7.30999665,83.97,83.932,41.70042415]
[1771344086369,7.30999665,83.97,83.935,3.46825677]
[1771344086670,7.30999665,83.99,83.951,3.46825677]
[1771344087366,7.30999665,83.98,83.954,3.46825677]
[1771344088163,7.30999665,83.97,83.945,11.91256179]
[1771344088368,7.30999665,83.97,83.947,3.46825677]
[1771344088570,7.30999665,83.98,83.951,3.46825677]
[1771344089262,1.44028165,84.005,83.951,3.46825677]
[1771344089263,7.30999665,83.99,83.951,3.46825677]
[1771344089665,7.30999665,83.99,83.946,17.02]
[1771344089666,7.30999665,84.0,83.961,3.46825677]
[1771344089852,7.30999665,83.99,83.963,3.46825677]
[1771344090054,7.30999665,83.99,83.965,3.46825677]
[1771344090454,1.42953042,84.005,83.965,3.46825677]
[1771344090655,7.30999665,83.99,83.965,3.46825677]
[1771344091060,7.30999665,83.99,83.966,11.90958245]
[1771344091268,7.30999665,83.99,83.967,3.46825677]
[1771344091473,11.90419503,84.004,83.967,3.46825677]
[1771344091656,7.30999665,83.99,83.967,3.46825677]
[1771344092365,7.30999665,83.98,83.967,3.46825677]
[1771344092570,7.30999665,83.99,83.967,3.46825677]
[1771344093380,7.30999665,83.99,83.968,11.90929878]
[1771344093577,1.41386225,84.015,83.969,3.46825677]
[1771344093787,7.30999665,84.03,83.969,3.46825677]
[1771344094096,1.40875905,84.046,84.0,7.30999665]
[1771344094279,6.20709547,84.055,84.002,3.46825677]
[1771344094486,1.40875905,84.052,84.002,3.46825677]
[1771344094683,1.40875905,84.052,83.971,4.61729252]
[1771344094684,7.30999665,84.04,84.004,3.46825677]
[1771344094980,0.1,84.06,84.011,3.46825677]
[1771344095183,0.1,84.06,84.021,3.46825677]
[1771344095482,0.1,84.06,84.012,17.04]
[1771344095483,7.30999665,84.09,84.051,3.46825677]
[1771344095684,1.3987278,84.08,84.031,3.46825677]
[1771344095876,1.3987278,84.08,84.034,3.46825677]
[1771344095877,7.30999665,84.06,84.034,3.46825677]
[1771344096465,7.30999665,84.05,84.027,17.04]
[1771344096772,7.30999665,84.04,84.015,11.90254695]
[1771344096957,7.30999665,84.03,84.014,3.46825677]
[1771344097358,7.30999665,84.03,83.996,29.7632463]
[1771344097359,7.30999665,84.03,84.004,3.46825677]
[1771344097586,7.30999665,84.03,84.005,11.90405333]
[1771344097764,7.30999665,84.02,84.004,20.50825677]
[1771344097971,11.89810463,84.047,84.006,3.46825677]
[1771344098371,7.30999665,84.04,84.006,3.46825677]
[1771344098669,11.8954217,84.066,84.011,3.46825677]
[1771344098992,7.30999665,84.05,84.013,3.46825677]
[1771344099173,7.30999665,84.06,84.016,3.46825677]
[1771344099375,7.30999665,84.06,84.032,3.46825677]
[1771344099763,11.89216187,84.089,84.033,17.04]
[1771344099963,7.30999665,84.07,84.041,3.46825677]
[1771344100167,7.30999665,84.07,84.043,3.46825677]
[1771344100784,1.37934742,84.09,84.043,3.46825677]
[1771344100971,7.30999665,84.07,84.043,3.46825677]
[1771344101372,7.30999665,84.08,84.045,3.46825677]
[1771344101680,7.30999665,84.08,84.051,3.46825677]
[1771344102184,7.30999665,84.07,84.051,3.46825677]
[1771344102873,7.30999665,84.07,84.047,20.50825677]
[1771344103070,7.30999665,84.06,84.036,29.74915512]
[1771344103276,7.30999665,84.07,84.039,3.46825677]
[1771344103590,7.30999665,84.08,84.041,3.46825677]
[1771344103776,7.30999665,84.09,84.051,3.46825677]
[1771344104178,7.30999665,84.09,84.05,7.30999665]
[1771344104179,7.30999665,84.09,84.053,3.46825677]
[1771344104364,7.30999665,84.09,84.061,3.09254113]
[1771344104562,7.30999665,84.1,84.063,3.09254113]
[1771344104763,7.30999665,84.1,84.038,136.84285678]
[1771344104764,1.3519054,84.137,84.08,7.30999665]
[1771344104978,7.30999665,84.13,84.091,3.09254113]
[1771344105176,7.30999665,84.13,84.05,7.30999665]
[1771344105177,7.30999665,84.11,84.093,3.09254113]
[1771344105488,7.30999665,84.12,84.094,11.8914548]
[1771344106186,29.71358222,84.137,84.094,28.9314548]
[1771344106387,11.88455675,84.143,84.094,11.8914548]
[1771344106610,0.2578156,84.144,84.11,7.30999665]
[1771344106784,0.2578156,84.144,84.094,41.6200918]
[1771344106785,1e-08,84.144,84.12,7.30999665]
[1771344107089,1e-08,84.144,84.121,17.04]
[1771344107399,3.41122035,84.188,84.126,3.09254113]
[1771344107570,7.30999665,84.14,84.124,11.88721411]
[1771344107770,7.30999665,84.14,84.121,29.71875033]
[1771344107771,7.30999665,84.13,84.12,3.09254113]
[1771344108084,3.41122035,84.148,84.114,17.04]
[1771344108406,7.30999665,84.16,84.121,3.09254113]
[1771344108600,11.87902401,84.182,84.123,3.09254113]